[Event "Live Chess"]
[Site "Chess.com"]
[Date "2023.05.21"]
[Round "-"]
[White "JanMur7"]
[Black "Doge_Dandolo"]
[Result "1-0"]
[WhiteElo "1973"]
[BlackElo "1880"]
[TimeControl "300"]
[EndTime "1:56:20 PDT"]
[Termination "JanMur7 won by resignation"]

1. e4 {[%clk 0:04:58.8]} 1... c6 {[%clk 0:04:58.8]} 2. d4 {[%clk 0:04:57.9]}
2... d5 {[%clk 0:04:58.2]} 3. Nc3 {[%clk 0:04:57.5]} 3... dxe4 {[%clk
0:04:57.1]} 4. Nxe4 {[%clk 0:04:57.4]} 4... Bf5 {[%clk 0:04:56.4]} 5. Ng3 {[%clk
0:04:56.2]} 5... Bg6 {[%clk 0:04:55.5]} 6. Nf3 {[%clk 0:04:55.6]} 6... Nd7
{[%clk 0:04:54.5]} 7. Bd3 {[%clk 0:04:53.9]} 7... e6 {[%clk 0:04:53.4]} 8. O-O
{[%clk 0:04:52.7]} 8... Ngf6 {[%clk 0:04:52.4]} 9. c3 {[%clk 0:04:50]} 9... Bd6
{[%clk 0:04:51.3]} 10. Re1 {[%clk 0:04:44.6]} 10... Qc7 {[%clk 0:04:49.5]} 11.
Ne4 {[%clk 0:04:41.6]} 11... Nxe4 {[%clk 0:04:47]} 12. Bxe4 {[%clk 0:04:40.6]}
12... Bxe4 {[%clk 0:04:45.2]} 13. Rxe4 {[%clk 0:04:40.5]} 13... Nf6 {[%clk
0:04:44.1]} 14. Re1 {[%clk 0:04:38.7]} 14... O-O {[%clk 0:04:42.8]} 15. Ne5
{[%clk 0:04:35.5]} 15... c5 {[%clk 0:04:38.9]} 16. Bf4 {[%clk 0:04:23.5]} 16...
Rfd8 {[%clk 0:04:36]} 17. dxc5 {[%clk 0:03:59.1]} 17... Bxc5 {[%clk 0:04:28.1]}
18. Qf3 {[%clk 0:03:52.6]} 18... Bd6 {[%clk 0:04:20.3]} 19. Rad1 {[%clk
0:03:46.3]} 19... Rac8 {[%clk 0:04:11.8]} 20. Nd3 {[%clk 0:03:30.6]} 20... Bxf4
{[%clk 0:04:08]} 21. Qxf4 {[%clk 0:03:26.4]} 21... Qxf4 {[%clk 0:03:57.8]} 22.
Nxf4 {[%clk 0:03:26.3]} 22... Kf8 {[%clk 0:03:55]} 23. Kf1 {[%clk 0:03:17.3]}
23... Ke7 {[%clk 0:03:48.9]} 24. Ke2 {[%clk 0:03:11.6]} 24... g6 {[%clk
0:03:45.7]} 25. f3 {[%clk 0:03:02]} 25... b5 {[%clk 0:03:42.4]} 26. Rxd8 {[%clk
0:02:57.5]} 26... Rxd8 {[%clk 0:03:40.4]} 27. Rd1 {[%clk 0:02:56.8]} 27... Rxd1
{[%clk 0:03:39.1]} 28. Kxd1 {[%clk 0:02:56.7]} 28... Kd6 {[%clk 0:03:37.6]} 29.
Ke2 {[%clk 0:02:52.1]} 29... Ke5 {[%clk 0:03:31.4]} 30. Nd3+ {[%clk 0:02:50.4]}
30... Kd5 {[%clk 0:03:28.9]} 31. Ke3 {[%clk 0:02:43.4]} 31... a5 {[%clk
0:03:23.8]} 32. Nf4+ {[%clk 0:02:36]} 32... Ke5 {[%clk 0:03:19.9]} 33. Nd3+
{[%clk 0:02:31]} 33... Kd5 {[%clk 0:03:18.3]} 34. Nc1 {[%clk 0:02:24.8]} 34...
Ke5 {[%clk 0:03:08.6]} 35. g3 {[%clk 0:02:15.6]} 35... Nd5+ {[%clk 0:03:06.5]}
36. Kd3 {[%clk 0:02:14]} 36... f5 {[%clk 0:03:02.8]} 37. Nb3 {[%clk 0:02:06.5]}
37... a4 {[%clk 0:03:00.1]} 38. Nd4 {[%clk 0:02:04.4]} 38... Nc7 {[%clk
0:02:52.7]} 39. Nc6+ {[%clk 0:02:02.6]} 39... Kd6 {[%clk 0:02:46.1]} 40. Nb4
{[%clk 0:01:29.1]} 40... e5 {[%clk 0:02:39.5]} 41. h4 {[%clk 0:01:17.5]} 41...
Nd5 {[%clk 0:02:32.6]} 42. Nxd5 {[%clk 0:00:53.7]} 42... Kxd5 {[%clk 0:02:30]}
43. b3 {[%clk 0:00:53]} 43... e4+ {[%clk 0:02:22]} 44. fxe4+ {[%clk 0:00:50.7]}
44... fxe4+ {[%clk 0:02:20.6]} 45. Ke3 {[%clk 0:00:50]} 45... axb3 {[%clk
0:02:19.5]} 46. axb3 {[%clk 0:00:48]} 46... h5 {[%clk 0:02:15.2]} 47. c4+ {[%clk
0:00:40.2]} 47... bxc4 {[%clk 0:02:13.6]} 48. bxc4+ {[%clk 0:00:40.1]} 48... Kc5
{[%clk 0:02:09.5]} 49. Kxe4 {[%clk 0:00:38.9]} 49... Kxc4 {[%clk 0:02:08.3]} 50.
Kf4 {[%clk 0:00:34.7]} 50... Kd5 {[%clk 0:02:07.2]} 51. Kg5 {[%clk 0:00:33.6]}
51... Ke4 {[%clk 0:02:06.5]} 52. Kxg6 {[%clk 0:00:32.7]} 52... Kf3 {[%clk
0:02:05.6]} 53. Kxh5 {[%clk 0:00:31.8]} 53... Kxg3 {[%clk 0:02:05]} 54. Kg5
{[%clk 0:00:31.2]} 54... Kf3 {[%clk 0:02:03.9]} 55. h5 {[%clk 0:00:30.6]} 55...
Ke4 {[%clk 0:02:03.5]} 56. h6 {[%clk 0:00:30.3]} 56... Ke5 {[%clk 0:02:03.2]}
57. h7 {[%clk 0:00:30.2]} 57... Ke6 {[%clk 0:02:02.4]} 58. h8=Q {[%clk
0:00:30.1]} 1-0

[Event "Live Chess"]
[Site "Chess.com"]
[Date "2023.05.21"]
[Round "-"]
[White "mliszewski"]
[Black "RichardABates"]
[Result "0-1"]
[WhiteElo "1836"]
[BlackElo "2139"]
[TimeControl "300"]
[EndTime "1:56:30 PDT"]
[Termination "RichardABates won by resignation"]

1. d4 {[%clk 0:04:59]} 1... Nf6 {[%clk 0:04:58.6]} 2. Bg5 {[%clk 0:04:57.5]}
2... Ne4 {[%clk 0:04:57.2]} 3. h4 {[%clk 0:04:56.3]} 3... d5 {[%clk 0:04:52.8]}
4. Nd2 {[%clk 0:04:53.9]} 4... Nxg5 {[%clk 0:04:50.9]} 5. hxg5 {[%clk
0:04:52.7]} 5... c5 {[%clk 0:04:46.4]} 6. c3 {[%clk 0:04:50.6]} 6... Nc6 {[%clk
0:04:41.7]} 7. e3 {[%clk 0:04:49.7]} 7... cxd4 {[%clk 0:04:34.7]} 8. cxd4 {[%clk
0:04:46.9]} 8... e5 {[%clk 0:04:33.5]} 9. dxe5 {[%clk 0:04:31.4]} 9... Nxe5
{[%clk 0:04:29.3]} 10. Ngf3 {[%clk 0:04:30.1]} 10... Nc6 {[%clk 0:04:24.8]} 11.
Bb5 {[%clk 0:04:26.5]} 11... Be7 {[%clk 0:04:18.1]} 12. Qc2 {[%clk 0:04:21.2]}
12... Qb6 {[%clk 0:03:56.9]} 13. Rxh7 {[%clk 0:04:09.2]} 13... Rxh7 {[%clk
0:03:54.7]} 14. Bxc6+ {[%clk 0:04:07.7]} 14... bxc6 {[%clk 0:03:51]} 15. Qxh7
{[%clk 0:04:07.3]} 15... Qxb2 {[%clk 0:03:47.7]} 16. Rb1 {[%clk 0:04:03]} 16...
Qc3 {[%clk 0:03:44.9]} 17. g6 {[%clk 0:03:36.7]} 17... Be6 {[%clk 0:03:30.9]}
18. Nd4 {[%clk 0:03:27.5]} 18... Bb4 {[%clk 0:03:11.7]} 19. Nxe6 {[%clk
0:02:54.7]} 19... Qxd2+ {[%clk 0:03:08.5]} 20. Kf1 {[%clk 0:02:52.9]} 20... Qd3+
{[%clk 0:03:06.2]} 21. Kg1 {[%clk 0:02:51.1]} 21... Qxb1+ {[%clk 0:03:04.7]} 22.
Kh2 {[%clk 0:02:50.7]} 22... Bd6+ {[%clk 0:02:30.8]} 23. g3 {[%clk 0:02:47.7]}
23... Qxg6 {[%clk 0:02:24.5]} 24. Nxg7+ {[%clk 0:02:34.3]} 24... Kd7 {[%clk
0:02:18.2]} 25. Qh3+ {[%clk 0:02:25.5]} 25... Kc7 {[%clk 0:02:14.2]} 26. Nf5
{[%clk 0:02:19.2]} 26... Be5 {[%clk 0:02:12.7]} 27. Ne7 {[%clk 0:02:04.8]} 27...
Qe6 {[%clk 0:02:07.2]} 0-1

[Event "Live Chess"]
[Site "Chess.com"]
[Date "2023.05.21"]
[Round "-"]
[White "zdanevych"]
[Black "Ian-Morley"]
[Result "1-0"]
[WhiteElo "1534"]
[BlackElo "1075"]
[TimeControl "300"]
[EndTime "1:57:04 PDT"]
[Termination "zdanevych won by resignation"]

1. d4 {[%clk 0:04:55.2]} 1... e5 {[%clk 0:04:58.3]} 2. dxe5 {[%clk 0:04:51.7]}
2... Nc6 {[%clk 0:04:55.4]} 3. Nf3 {[%clk 0:04:50]} 3... Qe7 {[%clk 0:04:54.1]}
4. Bf4 {[%clk 0:04:49.3]} 4... Qb4+ {[%clk 0:04:53.3]} 5. Bd2 {[%clk 0:04:48.8]}
5... Qxb2 {[%clk 0:04:52.5]} 6. Nc3 {[%clk 0:04:48.2]} 6... Bb4 {[%clk
0:04:51.4]} 7. Rb1 {[%clk 0:04:45.4]} 7... Qa3 {[%clk 0:04:46.6]} 8. Rb3 {[%clk
0:04:44.2]} 8... Qa5 {[%clk 0:04:45.6]} 9. e3 {[%clk 0:04:34.6]} 9... Bxc3
{[%clk 0:04:43.6]} 10. Bxc3 {[%clk 0:04:30.7]} 10... Qa6 {[%clk 0:04:41.8]} 11.
Bxa6 {[%clk 0:04:28.4]} 11... bxa6 {[%clk 0:04:40.4]} 12. O-O {[%clk 0:04:20.8]}
12... Na5 {[%clk 0:04:39.1]} 1-0

[Event "Live Chess"]
[Site "Chess.com"]
[Date "2023.05.21"]
[Round "-"]
[White "Mugzwang"]
[Black "peter-785"]
[Result "1-0"]
[WhiteElo "1564"]
[BlackElo "1190"]
[TimeControl "300"]
[EndTime "1:57:19 PDT"]
[Termination "Mugzwang won on time"]

1. Nf3 {[%clk 0:04:58.2]} 1... c5 {[%clk 0:04:59.3]} 2. c4 {[%clk 0:04:54.1]}
2... d6 {[%clk 0:04:58.5]} 3. Nc3 {[%clk 0:04:52.2]} 3... e6 {[%clk 0:04:57.4]}
4. g3 {[%clk 0:04:48.5]} 4... Nf6 {[%clk 0:04:56.9]} 5. Bg2 {[%clk 0:04:48]}
5... Be7 {[%clk 0:04:55.8]} 6. O-O {[%clk 0:04:46.8]} 6... Nc6 {[%clk 0:04:55]}
7. e3 {[%clk 0:04:45.3]} 7... Qc7 {[%clk 0:04:54.3]} 8. d4 {[%clk 0:04:43.7]}
8... cxd4 {[%clk 0:04:52.6]} 9. exd4 {[%clk 0:04:41.6]} 9... Rb8 {[%clk
0:04:28.5]} 10. Re1 {[%clk 0:04:33.9]} 10... O-O {[%clk 0:04:22.4]} 11. Bf4
{[%clk 0:04:19.9]} 11... Qb6 {[%clk 0:04:10.4]} 12. b3 {[%clk 0:04:11.8]} 12...
Ra8 {[%clk 0:04:09.1]} 13. Rc1 {[%clk 0:03:34.9]} 13... Rd8 {[%clk 0:03:58.5]}
14. Be3 {[%clk 0:03:23.5]} 14... Qc7 {[%clk 0:03:55.8]} 15. d5 {[%clk
0:03:07.9]} 15... exd5 {[%clk 0:03:50.8]} 16. Nxd5 {[%clk 0:02:56.2]} 16... Qa5
{[%clk 0:03:25]} 17. Nxe7+ {[%clk 0:02:38]} 17... Nxe7 {[%clk 0:03:21.4]} 18.
Bg5 {[%clk 0:02:37.3]} 18... Be6 {[%clk 0:02:19.8]} 19. Bxf6 {[%clk 0:02:23.9]}
19... gxf6 {[%clk 0:02:17.8]} 20. Qd4 {[%clk 0:02:21.2]} 20... Qf5 {[%clk
0:02:01.7]} 21. Nh4 {[%clk 0:02:00.2]} 21... Qg5 {[%clk 0:01:40.6]} 22. Bxb7
{[%clk 0:01:41.9]} 22... Rab8 {[%clk 0:01:33]} 23. Qxa7 {[%clk 0:01:35.3]} 23...
Nf5 {[%clk 0:01:13.7]} 24. Nxf5 {[%clk 0:01:23.1]} 24... Qxf5 {[%clk 0:01:08.8]}
25. Be4 {[%clk 0:01:03.2]} 25... Qg5 {[%clk 0:00:57]} 26. Qe3 {[%clk 0:00:56.7]}
26... Qa5 {[%clk 0:00:51.6]} 27. Qe2 {[%clk 0:00:49.6]} 27... f5 {[%clk
0:00:37.9]} 28. Bg2 {[%clk 0:00:42.1]} 28... Qc5 {[%clk 0:00:27.1]} 29. Qe3
{[%clk 0:00:38.3]} 29... Qb4 {[%clk 0:00:24.8]} 30. Qg5+ {[%clk 0:00:35.2]}
30... Kh8 {[%clk 0:00:20.8]} 31. Bh3 {[%clk 0:00:34.5]} 31... Qb7 {[%clk
0:00:15.9]} 32. Bxf5 {[%clk 0:00:31.7]} 32... Bxf5 {[%clk 0:00:13.7]} 33. Qxf5
{[%clk 0:00:29.7]} 33... Rg8 {[%clk 0:00:09.6]} 34. Qf6+ {[%clk 0:00:27.7]}
34... Rg7 {[%clk 0:00:08]} 35. Re7 {[%clk 0:00:25.9]} 1-0

[Event "Live Chess"]
[Site "Chess.com"]
[Date "2023.05.21"]
[Round "-"]
[White "Biranidun"]
[Black "Ferrarifan27"]
[Result "1-0"]
[WhiteElo "2547"]
[BlackElo "2093"]
[TimeControl "300"]
[EndTime "1:57:23 PDT"]
[Termination "Biranidun won by resignation"]

1. e4 {[%clk 0:04:59.1]} 1... e5 {[%clk 0:04:57.9]} 2. Nf3 {[%clk 0:04:58.1]}
2... Nc6 {[%clk 0:04:56.5]} 3. Bc4 {[%clk 0:04:57.4]} 3... Bc5 {[%clk 0:04:54]}
4. c3 {[%clk 0:04:56.3]} 4... Nf6 {[%clk 0:04:50.8]} 5. d4 {[%clk 0:04:55.8]}
5... exd4 {[%clk 0:04:49.6]} 6. b4 {[%clk 0:04:55.1]} 6... Be7 {[%clk
0:04:37.9]} 7. e5 {[%clk 0:04:53.5]} 7... Ng4 {[%clk 0:04:36.4]} 8. cxd4 {[%clk
0:04:52.2]} 8... Bxb4+ {[%clk 0:04:32.9]} 9. Nbd2 {[%clk 0:04:46.4]} 9... O-O
{[%clk 0:04:31.5]} 10. h3 {[%clk 0:04:44.8]} 10... Nh6 {[%clk 0:04:30.1]} 11.
O-O {[%clk 0:04:36.4]} 11... d6 {[%clk 0:04:22.6]} 12. Rb1 {[%clk 0:04:27.3]}
12... Bxd2 {[%clk 0:04:17.8]} 13. Bxd2 {[%clk 0:04:26]} 13... dxe5 {[%clk
0:04:17.1]} 14. Bxh6 {[%clk 0:04:23.7]} 14... gxh6 {[%clk 0:04:16.2]} 15. Qc1
{[%clk 0:04:17.7]} 15... e4 {[%clk 0:04:04.5]} 16. Nh2 {[%clk 0:04:11.6]} 16...
Qg5 {[%clk 0:03:58.8]} 17. Qc3 {[%clk 0:04:03.5]} 17... Rb8 {[%clk 0:03:45.9]}
18. Rfe1 {[%clk 0:03:59]} 18... Bf5 {[%clk 0:03:44.7]} 19. d5 {[%clk 0:03:55.5]}
19... Ne7 {[%clk 0:03:35.1]} 20. Bb3 {[%clk 0:03:54.7]} 20... e3 {[%clk
0:03:29.9]} 21. Rxe3 {[%clk 0:03:47.9]} 21... Bxb1 {[%clk 0:03:19.4]} 22. Rg3
{[%clk 0:03:46.8]} 22... Bg6 {[%clk 0:03:13.2]} 23. Rxg5 {[%clk 0:03:44.7]}
23... hxg5 {[%clk 0:03:12.5]} 24. Qxc7 {[%clk 0:03:44]} 24... Nf5 {[%clk
0:03:09.6]} 25. Ng4 {[%clk 0:03:40.9]} 25... Rfc8 {[%clk 0:03:06.4]} 26. Nf6+
{[%clk 0:03:39.6]} 26... Kg7 {[%clk 0:03:04.6]} 27. Qe5 {[%clk 0:03:39.2]} 27...
Kf8 {[%clk 0:02:42.3]} 28. Nd7+ {[%clk 0:03:37.6]} 28... Kg8 {[%clk 0:02:40.6]}
29. Nxb8 {[%clk 0:03:36.4]} 29... Rxb8 {[%clk 0:02:40.4]} 30. Qxb8+ {[%clk
0:03:35.3]} 1-0

[Event "Live Chess"]
[Site "Chess.com"]
[Date "2023.05.21"]
[Round "-"]
[White "Duke_of_Bebington"]
[Black "PrinceCharming_1"]
[Result "0-1"]
[WhiteElo "1589"]
[BlackElo "1623"]
[TimeControl "300"]
[EndTime "1:57:27 PDT"]
[Termination "PrinceCharming_1 won by checkmate"]

1. e4 {[%clk 0:04:57.6]} 1... e5 {[%clk 0:04:59.2]} 2. Nf3 {[%clk 0:04:55.6]}
2... Nc6 {[%clk 0:04:58.6]} 3. Bc4 {[%clk 0:04:54.2]} 3... Bc5 {[%clk
0:04:57.5]} 4. b4 {[%clk 0:04:53.3]} 4... Bxb4 {[%clk 0:04:56.5]} 5. c3 {[%clk
0:04:52.7]} 5... Ba5 {[%clk 0:04:56.3]} 6. d4 {[%clk 0:04:49.9]} 6... exd4
{[%clk 0:04:56.2]} 7. O-O {[%clk 0:04:44.8]} 7... d3 {[%clk 0:04:55.3]} 8. Qxd3
{[%clk 0:04:39.2]} 8... Nge7 {[%clk 0:04:54.3]} 9. Ng5 {[%clk 0:04:25.1]} 9...
O-O {[%clk 0:04:52.9]} 10. Nxf7 {[%clk 0:04:12.8]} 10... Rxf7 {[%clk 0:04:50.1]}
11. Bg5 {[%clk 0:04:08.3]} 11... Ne5 {[%clk 0:04:48.5]} 12. Bxf7+ {[%clk
0:04:04.2]} 12... Nxf7 {[%clk 0:04:46.9]} 13. Bxe7 {[%clk 0:04:00.9]} 13... Qxe7
{[%clk 0:04:45.7]} 14. Qd5 {[%clk 0:03:58.5]} 14... Bb6 {[%clk 0:04:43.6]} 15.
Na3 {[%clk 0:03:53.5]} 15... c6 {[%clk 0:04:42.3]} 16. Qb3 {[%clk 0:03:49]}
16... Kh8 {[%clk 0:04:40]} 17. Nc4 {[%clk 0:03:47.8]} 17... Bc7 {[%clk
0:04:38.6]} 18. Rad1 {[%clk 0:03:44.5]} 18... Ne5 {[%clk 0:04:36.1]} 19. Ne3
{[%clk 0:03:38.3]} 19... Qh4 {[%clk 0:04:33.6]} 20. Nf5 {[%clk 0:03:28.1]} 20...
Nf3+ {[%clk 0:04:29.7]} 21. gxf3 {[%clk 0:03:23.1]} 21... Qxh2# {[%clk
0:04:28.7]} 0-1

[Event "Live Chess"]
[Site "Chess.com"]
[Date "2023.05.21"]
[Round "-"]
[White "Hacker_2009"]
[Black "WombatIn_A_Box"]
[Result "1-0"]
[WhiteElo "1912"]
[BlackElo "533"]
[TimeControl "300"]
[EndTime "1:57:34 PDT"]
[Termination "Hacker_2009 won by checkmate"]

1. d4 {[%clk 0:04:56.6]} 1... Nc6 {[%clk 0:04:55.2]} 2. Nf3 {[%clk 0:04:54.5]}
2... d5 {[%clk 0:04:52.5]} 3. e3 {[%clk 0:04:53.1]} 3... Nf6 {[%clk 0:04:51.2]}
4. c4 {[%clk 0:04:52.6]} 4... e5 {[%clk 0:04:49.3]} 5. dxe5 {[%clk 0:04:51.2]}
5... Nxe5 {[%clk 0:04:47.5]} 6. Nxe5 {[%clk 0:04:49.9]} 6... Ne4 {[%clk
0:04:44.3]} 7. Qxd5 {[%clk 0:04:37.7]} 7... Qxd5 {[%clk 0:04:40]} 8. cxd5 {[%clk
0:04:35.7]} 8... Bd6 {[%clk 0:04:29.4]} 9. Nc4 {[%clk 0:04:31.5]} 9... Bb4+
{[%clk 0:04:24.4]} 10. Nbd2 {[%clk 0:04:29.2]} 10... Nxd2 {[%clk 0:04:23.1]} 11.
Bxd2 {[%clk 0:04:27.8]} 11... Bxd2+ {[%clk 0:04:21.6]} 12. Kxd2 {[%clk
0:04:26.6]} 12... b5 {[%clk 0:04:19.6]} 13. Na3 {[%clk 0:04:22.1]} 13... a6
{[%clk 0:04:15.1]} 14. Rc1 {[%clk 0:04:19.7]} 14... Ra7 {[%clk 0:04:11.6]} 15.
Be2 {[%clk 0:04:17.1]} 15... O-O {[%clk 0:04:09.6]} 16. Bf3 {[%clk 0:04:15.8]}
16... Re8 {[%clk 0:04:07.7]} 17. e4 {[%clk 0:04:14.3]} 17... Bd7 {[%clk
0:04:02.7]} 18. Nc2 {[%clk 0:04:12.4]} 18... c6 {[%clk 0:03:58.3]} 19. dxc6
{[%clk 0:04:09.3]} 19... Bxc6 {[%clk 0:03:57.6]} 20. Rhe1 {[%clk 0:04:08.5]}
20... b4 {[%clk 0:03:52.9]} 21. Nxb4 {[%clk 0:03:59.7]} 21... Bb5 {[%clk
0:03:50.2]} 22. Nd5 {[%clk 0:03:58.4]} 22... g6 {[%clk 0:03:41.6]} 23. Nf6+
{[%clk 0:03:56.4]} 23... Kf8 {[%clk 0:03:38.8]} 24. Nxe8 {[%clk 0:03:55.3]}
24... Kxe8 {[%clk 0:03:38.7]} 25. Ke3 {[%clk 0:03:53.2]} 25... Re7 {[%clk
0:03:35.6]} 26. Red1 {[%clk 0:03:50.9]} 26... Ba4 {[%clk 0:03:33.6]} 27. Rc8#
{[%clk 0:03:48.4]} 1-0

[Event "Live Chess"]
[Site "Chess.com"]
[Date "2023.05.21"]
[Round "-"]
[White "EdenHazard8"]
[Black "Tushinskiy"]
[Result "1-0"]
[WhiteElo "1971"]
[BlackElo "2158"]
[TimeControl "300"]
[EndTime "1:57:44 PDT"]
[Termination "EdenHazard8 won by checkmate"]

1. e4 {[%clk 0:04:58.7]} 1... e5 {[%clk 0:04:58.9]} 2. Nf3 {[%clk 0:04:57.9]}
2... d6 {[%clk 0:04:58.8]} 3. Bc4 {[%clk 0:04:56.7]} 3... Bg4 {[%clk 0:04:58.2]}
4. d3 {[%clk 0:04:55.9]} 4... Nf6 {[%clk 0:04:56.4]} 5. h3 {[%clk 0:04:54.3]}
5... Bh5 {[%clk 0:04:55.3]} 6. Nbd2 {[%clk 0:04:53]} 6... Be7 {[%clk 0:04:54.5]}
7. c3 {[%clk 0:04:52.5]} 7... c6 {[%clk 0:04:50.3]} 8. O-O {[%clk 0:04:52.4]}
8... Nbd7 {[%clk 0:04:49.2]} 9. Re1 {[%clk 0:04:51.5]} 9... O-O {[%clk
0:04:46.8]} 10. Nf1 {[%clk 0:04:50.7]} 10... Qc7 {[%clk 0:04:45.6]} 11. Ng3
{[%clk 0:04:49.7]} 11... Bg6 {[%clk 0:04:45.2]} 12. Nh4 {[%clk 0:04:48.5]} 12...
d5 {[%clk 0:04:43.6]} 13. Nhf5 {[%clk 0:04:44.7]} 13... Rfe8 {[%clk 0:04:40.7]}
14. Nxe7+ {[%clk 0:04:38.7]} 14... Rxe7 {[%clk 0:04:40.6]} 15. Bb3 {[%clk
0:04:38.1]} 15... Rd8 {[%clk 0:04:35.8]} 16. Nf5 {[%clk 0:04:35.1]} 16... Ree8
{[%clk 0:04:34]} 17. Bg5 {[%clk 0:04:32.4]} 17... Bxf5 {[%clk 0:04:30.6]} 18.
exf5 {[%clk 0:04:32.3]} 18... Nc5 {[%clk 0:04:28.9]} 19. Bxf6 {[%clk 0:04:30.1]}
19... gxf6 {[%clk 0:04:27.7]} 20. Qh5 {[%clk 0:04:26.6]} 20... Nxd3 {[%clk
0:04:22.2]} 21. Re3 {[%clk 0:04:23.2]} 21... Nf4 {[%clk 0:04:17.9]} 22. Qh6
{[%clk 0:04:21.8]} 22... Kh8 {[%clk 0:03:54.1]} 23. Qxf6+ {[%clk 0:04:20.4]}
23... Kg8 {[%clk 0:03:53.3]} 24. Rg3+ {[%clk 0:03:52.1]} 24... Kf8 {[%clk
0:03:51.8]} 25. Qg7+ {[%clk 0:03:51.6]} 25... Ke7 {[%clk 0:03:50.6]} 26. f6+
{[%clk 0:03:51.2]} 26... Kd6 {[%clk 0:03:49.9]} 27. Qxh7 {[%clk 0:03:44.4]}
27... Ne2+ {[%clk 0:03:46.8]} 28. Kh2 {[%clk 0:03:42.8]} 28... Nxg3 {[%clk
0:03:46.7]} 29. fxg3 {[%clk 0:03:42.7]} 29... Rh8 {[%clk 0:03:45.5]} 30. Qf5
{[%clk 0:03:40.2]} 30... Rde8 {[%clk 0:03:43.4]} 31. Re1 {[%clk 0:03:36.3]}
31... b5 {[%clk 0:03:41.8]} 32. Qf2 {[%clk 0:03:27]} 32... a5 {[%clk 0:03:38.9]}
33. Bc2 {[%clk 0:03:25.7]} 33... Qd8 {[%clk 0:03:30.1]} 34. b4 {[%clk
0:03:23.6]} 34... axb4 {[%clk 0:03:09.6]} 35. cxb4 {[%clk 0:03:23.5]} 35... d4
{[%clk 0:03:08.9]} 36. Be4 {[%clk 0:03:20.9]} 36... Re6 {[%clk 0:03:06.1]} 37.
Rc1 {[%clk 0:03:19]} 37... Kc7 {[%clk 0:03:04.6]} 38. Qe2 {[%clk 0:03:17]} 38...
Kb6 {[%clk 0:02:57]} 39. a4 {[%clk 0:03:15.4]} 39... Qxf6 {[%clk 0:02:54.4]} 40.
axb5 {[%clk 0:03:05.5]} 40... cxb5 {[%clk 0:02:54.3]} 41. Rc5 {[%clk 0:03:04.9]}
41... Ka7 {[%clk 0:02:44.3]} 42. Qxb5 {[%clk 0:03:02.4]} 42... Rb6 {[%clk
0:02:35.4]} 43. Rc7+ {[%clk 0:03:00.7]} 43... Kb8 {[%clk 0:02:33.5]} 44. Rb7+
{[%clk 0:02:59.6]} 44... Rxb7 {[%clk 0:02:30.9]} 45. Qxb7# {[%clk 0:02:58.4]}
1-0

[Event "Live Chess"]
[Site "Chess.com"]
[Date "2023.05.21"]
[Round "-"]
[White "HadesLearmonth"]
[Black "elizaveta_frundina"]
[Result "0-1"]
[WhiteElo "1208"]
[BlackElo "1576"]
[TimeControl "300"]
[EndTime "1:58:04 PDT"]
[Termination "elizaveta_frundina won by checkmate"]

1. e4 {[%clk 0:04:58.6]} 1... c5 {[%clk 0:04:56.8]} 2. Nf3 {[%clk 0:04:57.4]}
2... d6 {[%clk 0:04:55.2]} 3. d4 {[%clk 0:04:55.9]} 3... cxd4 {[%clk 0:04:54.8]}
4. Nxd4 {[%clk 0:04:55.5]} 4... Nf6 {[%clk 0:04:53.8]} 5. Nc3 {[%clk 0:04:53.8]}
5... a6 {[%clk 0:04:52.5]} 6. Be2 {[%clk 0:04:51.2]} 6... e5 {[%clk 0:04:47.8]}
7. Nf3 {[%clk 0:04:49]} 7... Be7 {[%clk 0:04:46]} 8. Bg5 {[%clk 0:04:44.8]} 8...
Be6 {[%clk 0:04:43.7]} 9. O-O {[%clk 0:04:36.5]} 9... O-O {[%clk 0:04:42]} 10.
a3 {[%clk 0:04:27.2]} 10... h6 {[%clk 0:04:36.5]} 11. Bxf6 {[%clk 0:04:24.9]}
11... Bxf6 {[%clk 0:04:34.8]} 12. b4 {[%clk 0:04:23.4]} 12... Nd7 {[%clk
0:04:29]} 13. Nd5 {[%clk 0:04:21.8]} 13... Rc8 {[%clk 0:04:11.4]} 14. Qd2 {[%clk
0:04:15.2]} 14... Bxd5 {[%clk 0:04:03.1]} 15. exd5 {[%clk 0:04:08.5]} 15... e4
{[%clk 0:03:55.6]} 16. Nd4 {[%clk 0:04:05.3]} 16... Qb6 {[%clk 0:03:44.7]} 17.
c3 {[%clk 0:03:57.4]} 17... Rxc3 {[%clk 0:03:37.8]} 18. Qxc3 {[%clk 0:03:52]}
18... Bxd4 {[%clk 0:03:36.4]} 19. Qg3 {[%clk 0:03:47.3]} 19... Bxa1 {[%clk
0:03:32.4]} 20. Rxa1 {[%clk 0:03:43]} 20... Ne5 {[%clk 0:03:08.8]} 21. Rc1
{[%clk 0:03:32.3]} 21... a5 {[%clk 0:02:48.7]} 22. b5 {[%clk 0:03:27]} 22... f5
{[%clk 0:02:35.6]} 23. Bh5 {[%clk 0:03:07.4]} 23... Qd8 {[%clk 0:02:17.6]} 24.
f4 {[%clk 0:02:53.8]} 24... Nd3 {[%clk 0:02:09.7]} 25. Rd1 {[%clk 0:02:40.3]}
25... Qb6+ {[%clk 0:02:04.9]} 26. Kh1 {[%clk 0:02:34.8]} 26... Nf2+ {[%clk
0:02:01.1]} 27. Kg1 {[%clk 0:02:28.5]} 27... Nxd1+ {[%clk 0:01:59.1]} 28. Kf1
{[%clk 0:02:26.6]} 28... Qe3 {[%clk 0:01:49.7]} 29. Bxd1 {[%clk 0:02:23.6]}
29... Qxg3 {[%clk 0:01:45.2]} 30. hxg3 {[%clk 0:02:23.5]} 30... Rc8 {[%clk
0:01:39.3]} 31. Ke2 {[%clk 0:02:21.2]} 31... Rc3 {[%clk 0:01:37.5]} 32. a4
{[%clk 0:02:18.4]} 32... Rxg3 {[%clk 0:01:35.5]} 33. Kf2 {[%clk 0:02:16]} 33...
Ra3 {[%clk 0:01:33.5]} 34. g3 {[%clk 0:02:13.3]} 34... Rd3 {[%clk 0:01:31.6]}
35. Be2 {[%clk 0:02:10.9]} 35... Ra3 {[%clk 0:01:26.5]} 36. Kg2 {[%clk
0:02:08.7]} 36... Kf7 {[%clk 0:01:21]} 37. Bd1 {[%clk 0:02:06.4]} 37... Kf6
{[%clk 0:01:17.7]} 38. Kh3 {[%clk 0:02:03.4]} 38... g5 {[%clk 0:01:16.4]} 39.
fxg5+ {[%clk 0:02:01.6]} 39... hxg5 {[%clk 0:01:15.5]} 40. Kg2 {[%clk
0:01:52.6]} 40... Ke5 {[%clk 0:01:14.4]} 41. g4 {[%clk 0:01:49.3]} 41... f4
{[%clk 0:01:12.9]} 42. b6 {[%clk 0:01:46.6]} 42... Kxd5 {[%clk 0:01:10.9]} 43.
Kf1 {[%clk 0:01:43.8]} 43... f3 {[%clk 0:01:07.5]} 44. Kf2 {[%clk 0:01:42.1]}
44... Ke5 {[%clk 0:01:05.1]} 45. Kg3 {[%clk 0:01:39.8]} 45... d5 {[%clk
0:00:59]} 46. Bc2 {[%clk 0:01:32.6]} 46... d4 {[%clk 0:00:53.1]} 47. Bb1 {[%clk
0:01:28.7]} 47... d3 {[%clk 0:00:51.9]} 48. Ba2 {[%clk 0:01:26.6]} 48... Rxa2
{[%clk 0:00:45.6]} 49. Kh3 {[%clk 0:01:24.8]} 49... f2 {[%clk 0:00:41.3]} 50.
Kg3 {[%clk 0:01:20.8]} 50... f1=R {[%clk 0:00:38.4]} 51. Kh3 {[%clk 0:01:18.5]}
51... Rf3# {[%clk 0:00:33.2]} 0-1